fUST/lending_fUST_20240710
["ID","MTS","AMOUNT","RATE_DAILY","PERIOD"]
[331589804,1720567838804,-208.54201475,0.00027323,2]
[331589805,1720567838814,-150.0,0.00027323,2]
[331589806,1720567838824,-194.09405631,0.00027397,2]
[331589807,1720567838834,-432.55938278,0.00027397,2]
[331589808,1720567838843,-500.0,0.00027397,2]
[331589809,1720567838853,-500.0,0.00027397,2]
[331589810,1720567838863,-365.29624275,0.00027397,2]
[331589811,1720567838873,-500.0,0.00027397,2]
[331589812,1720567838882,-500.0,0.00027397,2]
[331589813,1720567838893,-500.0,0.00027397,2]
[331589814,1720567838903,-500.0,0.00027397,2]
[331589815,1720567838913,-500.0,0.00027397,2]
[331589816,1720567838924,-500.0,0.00027397,2]
[331589817,1720567838934,-500.0,0.00027397,2]
[331589818,1720567838944,-500.0,0.00027397,2]
[331589819,1720567838955,-500.0,0.00027397,2]
[331589820,1720567838965,-500.0,0.00027397,2]
[331589821,1720567838975,-500.0,0.00027397,2]
[331589822,1720567838985,-500.0,0.00027397,2]
[331589823,1720567838995,-500.0,0.00027397,2]
[331589824,1720567839004,-500.0,0.00027397,2]
[331589825,1720567839015,-500.0,0.00027397,2]
[331589826,1720567839025,-500.0,0.00027397,2]
[331589827,1720567839035,-500.0,0.00027397,2]
[331589828,1720567839045,-500.0,0.00027397,2]
[331589829,1720567839055,-191.0559141,0.00027397,120]
[331589830,1720567839065,-1118.57521267,0.00027826,2]
[331589831,1720567839075,-250.0,0.00027863,2]
[331589832,1720567839085,-160.66266123,0.00027871,2]
[331589833,1720567839094,-1405.0,0.0002796,2]
[331589834,1720567839104,-261.858,0.0002796,2]
[331589835,1720567839114,-350.0,0.00028411,2]
[331589836,1720567839123,-450.0,0.00028959,2]
[331589837,1720567839133,-1734.558754,0.00029038,2]
[331589838,1720567839143,-550.0,0.00029507,2]
[331589839,1720567839153,-151.0,0.00029697,3]
[331589840,1720567839162,-42248.84590217,0.00029793,2]
[331589841,1720567839172,-49694.563204,0.00029813,3]
[331589842,1720567839181,-9157.09157115,0.00029999,2]
[331589843,1720567839191,-170.45207762,0.0003,4]
[331589844,1720567839201,-219.0,0.0003,2]
[331589845,1720567839211,-650.0,0.00030055,2]
[331589846,1720567839221,-750.0,0.00030603,2]
[331589847,1720567839231,-1405.0,0.0003096,2]
[331589848,1720567839241,-150.0,0.0003096,2]
[331589849,1720567839251,-151.0,0.00030985,4]
[331589850,1720567839262,-1734.558754,0.00030992,2]
[331589851,1720567839271,-850.0,0.00031151,2]
[331589852,1720567839281,-1118.57521267,0.00031241,2]
[331589853,1720567839291,-950.0,0.00031699,2]
[331589854,1720567839301,-151.0,0.00032273,4]
[331589855,1720567839311,-4606.24481039,0.000329,2]
[331589856,1720567839322,-1734.558754,0.00032946,2]
[331589857,1720567839332,-219.0,0.00033,2]
[331589858,1720567839342,-219.0,0.00033,2]
[331589859,1720567839353,-570.829368,0.00033295,2]
[331589860,1720567839411,-151.0,0.00033561,5]
[331589861,1720567839427,-600.0,0.000336,2]
[331589862,1720567839438,-49694.563204,0.00033732,4]
[331589863,1720567839448,-48549.04775494,0.00033742,5]
[331589864,1720567839459,-150.0,0.00033825,2]
[331589865,1720567839468,-153.0,0.00033918,2]
[331589866,1720567839479,-153.0,0.00033918,2]
[331589867,1720567839489,-153.0,0.00033918,2]
[331589868,1720567839499,-431.520634,0.00033948,2]
[331589869,1720567839510,-600.0,0.0003395,2]
[331589870,1720567839520,-1405.0,0.0003396,2]
[331589871,1720567839531,-150.0,0.0003396,2]
[331589872,1720567839541,-1033.33915306,0.00034,2]
[331589873,1720567839551,-952.44947376,0.000343,2]
[331589874,1720567839562,-256.79365305,0.00034317,2]
[331589875,1720567839572,-43569.16742507,0.00034408,4]
[331589880,1720567840334,-166.666666,0.00024087,2]
[331589883,1720567840346,-166.666666,0.00024694,2]
[331589885,1720567840356,-166.666666,0.00025301,2]
[331589886,1720567840367,-6125.39577893,0.00034408,4]
[331589888,1720567840378,-1431.78470865,0.00034418,2]
[331589890,1720567840389,-153.0,0.00034466,2]
[331589892,1720567840399,-153.0,0.00034466,2]
[331589894,1720567840409,-153.0,0.00034466,2]
[331589896,1720567840420,-5181.95955056,0.00034556,2]
[331589898,1720567840430,-922.8597104,0.00034574,4]
[331589900,1720567840439,-412.362969,0.00034575,2]
[331589902,1720567840449,-243.16651748,0.00034585,4]
[331589904,1720567840459,-885.64307745,0.00034602,4]
[331589906,1720567840469,-304.22675637,0.00034602,30]
[331589908,1720567840480,-601.0404053,0.00034602,4]
[331589910,1720567840490,-696.2767755,0.0003463,4]
[331589912,1720567840500,-674.33685413,0.00034634,4]
[331589914,1720567840510,-1118.57521267,0.00034655,2]
[331589916,1720567840519,-1086.61186892,0.0003468,2]
[331589918,1720567840529,-155.3062925,0.00034702,4]
[331589920,1720567840538,-186.93024074,0.00034702,3]
[331589922,1720567840548,-358.97423758,0.0003471,2]
[331589924,1720567840558,-192.802,0.00034744,30]
[331589925,1720567840567,-251.08002692,0.00034762,4]
[331589926,1720567840578,-154.63660398,0.00034771,4]
[331589927,1720567840588,-202.73502079,0.00034771,2]
[331589928,1720567840598,-154.60575532,0.00034811,4]
[331589929,1720567840607,-151.0,0.00034849,6]
[331589930,1720567840617,-215.7369211,0.00034899,4]
[331589931,1720567840627,-6292.871443,0.000349,2]
[331589932,1720567840637,-1734.558754,0.000349,2]
[331589933,1720567840647,-155.19639919,0.00034989,4]
[331589934,1720567840656,-379.32113345,0.00034989,4]
[331589935,1720567840666,-435.0,0.00034989,2]
[331589936,1720567840677,-1000.0,0.00034999,3]
[331589937,1720567840686,-1423.24152722,0.00034999,5]
[331589938,1720567840696,-1092.51200049,0.00034999,21]
[331589939,1720567840707,-33421.29619379,0.00035,5]
[331589940,1720567840717,-408894.26593587,0.00035,30]
[331589941,1720567840738,-30371.18177589,0.00035,30]
[331590053,1720568233396,1553.36,0.00038384,120]
[331590061,1720569032198,-2916.066193,0.00016255,2]
[331590063,1720569033039,-258.18004786,0.00016255,2]
[331590065,1720569033052,-4677.03164596,0.00016255,2]
[331590068,1720569038445,-34397.56801535,0.00016255,2]
[331590069,1720569038455,-167.386055,0.00021096,2]
[331590070,1720569038465,-513.746431,0.00021096,2]
[331590071,1720569038475,-166.666666,0.00022369,2]
[331590072,1720569038485,-250.0,0.00022847,2]
[331590073,1720569038494,-162.454767,0.00022956,2]
[331590074,1720569038504,-166.666666,0.00022979,2]
[331590075,1720569038513,-6545.91740772,0.00023,2]
[331590076,1720569038603,-150.0,0.00023,2]
[331590077,1720569038616,-431.520634,0.00023023,2]
[331590078,1720569038626,-250.0,0.00023548,2]
[331590079,1720569038636,-166.666666,0.00023589,2]
[331590080,1720569038645,-350.0,0.00024096,2]
[331590081,1720569038655,-166.666666,0.00024199,2]
[331590082,1720569038665,-450.0,0.00024644,2]
[331590083,1720569038675,-166.666666,0.00024809,2]
[331590084,1720569038686,-101443.397007,0.00024989,3]
[331590085,1720569038696,-5179.87328224,0.00024999,5]
[331590086,1720569038707,-76022.07849578,0.00024999,2]
[331590087,1720569038721,-550.0,0.00025192,2]
[331590088,1720569038732,-166.666666,0.00025418,2]
[331590089,1720569038742,-162.413331,0.00025476,2]
[331590090,1720569038751,-50721.6985036,0.00025491,3]
[331590091,1720569038760,-500.0,0.000255,2]
[331590092,1720569038770,-500.0,0.000255,2]
[331590093,1720569038779,-488.53505433,0.000255,2]
[331590094,1720569038789,-163.35043484,0.000255,2]
[331590095,1720569038798,-458.41117747,0.000255,2]
[331590096,1720569038807,-500.0,0.000255,2]
[331590097,1720569038817,-191.97453803,0.000255,2]
[331590098,1720569038826,-500.0,0.000255,2]
[331590099,1720569038836,-500.0,0.000255,2]
[331590100,1720569038845,-500.0,0.000255,2]
[331590101,1720569038855,-196.02809607,0.000255,2]
[331590102,1720569038864,-213.32314362,0.000255,2]
[331590103,1720569038874,-500.0,0.000255,2]
[331590104,1720569038883,-170.88782423,0.000255,2]
[331590105,1720569038894,-52136.2205257,0.00025501,2]
[331590106,1720569038903,-155.22827276,0.00025564,2]
[331590107,1720569038913,-1734.558754,0.0002564,2]
[331590108,1720569038923,-650.0,0.0002574,2]
[331590109,1720569038932,-30000.0,0.00025869,2]
[331590110,1720569038941,-750.0,0.00026288,2]
[331590111,1720569038951,-1734.558754,0.00026398,2]
[331590112,1720569038960,-3000.0,0.000265,2]
[331590113,1720569038970,-3000.0,0.0002651,2]
[331590114,1720569038979,-3000.0,0.0002652,2]
[331590115,1720569038989,-3000.0,0.0002653,2]
[331590116,1720569038999,-3000.0,0.0002654,2]
[331590117,1720569039009,-3000.0,0.0002655,2]
[331590118,1720569039021,-3000.0,0.0002656,2]
[331590119,1720569039032,-3000.0,0.0002657,2]
[331590120,1720569039042,-50721.6985036,0.0002657,3]
[331590121,1720569039052,-3000.0,0.0002658,2]
[331590122,1720569039061,-3000.0,0.0002659,2]
[331590123,1720569039071,-3000.0,0.000266,2]
[331590124,1720569039080,-3000.0,0.0002661,2]
[331590125,1720569039090,-3000.0,0.0002662,2]
[331590126,1720569039100,-3000.0,0.0002663,2]
[331590127,1720569039110,-3000.0,0.0002664,2]
[331590128,1720569039119,-3158.47667,0.0002665,2]
[331590129,1720569039129,-208.54201475,0.00026688,2]
[331590130,1720569039138,-150.0,0.00026688,2]
[331590131,1720569039148,-150.47620585,0.00026717,2]
[331590132,1720569039158,-174.1490997,0.00026717,2]
[331590133,1720569039168,-850.0,0.00026836,2]
[331590134,1720569039178,-18957.53849695,0.00027,4]
[331590135,1720569039188,-167.038957,0.00027123,2]
[331590136,1720569039198,-167.038957,0.00027123,120]
[331590137,1720569039207,-1734.558754,0.00027155,2]
[331590138,1720569039217,-513.746431,0.00027195,2]
[331590139,1720569039227,-160.66266123,0.00027235,2]
[331590140,1720569039237,-101443.397007,0.00027277,3]
[331590141,1720569039246,-48549.04775494,0.00027287,3]
[331590142,1720569039256,-950.0,0.00027384,2]
[331590143,1720569039266,-194.09405631,0.00027397,2]
[331590144,1720569039276,-500.0,0.00027397,2]
[331590145,1720569039286,-500.0,0.00027397,2]
[331590146,1720569039296,-500.0,0.00027397,2]
[331590147,1720569039305,-500.0,0.00027397,2]
[331590148,1720569039315,-500.0,0.00027397,2]
[331590149,1720569039324,-500.0,0.00027397,2]
[331590150,1720569039334,-500.0,0.00027397,2]
[331590151,1720569039344,-500.0,0.00027397,2]
[331590152,1720569039354,-500.0,0.00027397,2]
[331590153,1720569039364,-500.0,0.00027397,2]
[331590154,1720569039374,-500.0,0.00027397,2]
[331590155,1720569039384,-500.0,0.00027397,2]
[331590156,1720569039393,-500.0,0.00027397,2]
[331590157,1720569039403,-500.0,0.00027397,2]
[331590158,1720569039412,-500.0,0.00027397,2]
[331590159,1720569039422,-500.0,0.00027397,2]
[331590160,1720569039432,-500.0,0.00027397,2]
[331590161,1720569039442,-365.29624275,0.00027397,2]
[331590162,1720569039451,-500.0,0.00027397,2]
[331590163,1720569039461,-500.0,0.00027397,2]
[331590164,1720569039471,-500.0,0.00027397,2]
[331590165,1720569039480,-432.55938278,0.00027397,2]
[331590166,1720569039489,-191.0559141,0.00027397,120]
[331590167,1720569039499,-43657.05388,0.000275,2]
[331590168,1720569039509,-1328.65900423,0.000279,2]
[331590169,1720569039518,-1734.558754,0.00027913,2]
[331590170,1720569039527,-25158.86869203,0.0002799,2]
[331590171,1720569039537,-798.33156433,0.000285,2]
[331590172,1720569039547,-1734.558754,0.0002867,2]
[331590173,1720569039556,-189961.79213932,0.0002877,2]
[331590174,1720569039566,-151.0,0.0002877,7]
[331590175,1720569039575,-151.0,0.0002877,7]
[331590176,1720569039586,-1842.299465,0.0002877,7]
[331590177,1720569039595,-1842.299465,0.0002877,7]
[331590178,1720569039605,-151.0,0.0002877,7]
[331590179,1720569039614,-151.0,0.0002877,7]
[331590180,1720569039624,-697.486303,0.0002877,7]
[331590181,1720569039634,-697.486303,0.0002877,7]
[331590182,1720569039643,-1519.50491,0.0002877,7]
[331590183,1720569039654,-1519.50491,0.0002877,7]
[331590184,1720569039664,-552.524642,0.0002877,7]
[331590185,1720569039674,-552.524642,0.0002877,7]
[331590186,1720569039684,-292.706453,0.0002877,7]
[331590187,1720569039694,-292.706453,0.0002877,7]
[331590188,1720569039763,-209.884773,0.0002877,7]
[331590189,1720569039773,-181.700573,0.0002877,7]
[331590190,1720569039783,-209.884773,0.0002877,7]
[331590191,1720569039792,-181.700573,0.0002877,7]
[331590192,1720569039802,-649.364173,0.0002877,7]
[331590193,1720569039812,-649.364173,0.0002877,7]
[331590194,1720569039822,-261.858,0.00028774,2]
[331590195,1720569039831,-1405.0,0.00028774,2]
[331590196,1720569039841,-849.30884963,0.00029,2]
[331590197,1720569039850,-151.0,0.00029757,3]
[331590198,1720569039860,-157.285723,0.00029793,7]
[331590199,1720569039870,-267.936461,0.00029793,7]
[331590200,1720569039879,-267.936461,0.00029793,7]
[331590201,1720569039889,-248.18592096,0.000298,120]
[331590202,1720569039898,-17258.59312702,0.00029823,2]
[331590203,1720569039908,-1065.65690458,0.00029861,2]
[331590204,1720569039917,-342.315555,0.00029903,7]
[331590205,1720569039927,-342.315555,0.00029903,7]
[331590206,1720569039937,-9157.09157115,0.00029999,2]
[331590207,1720569039946,-170.45207762,0.0003,4]
[331590208,1720569039956,-752.61886642,0.0003,2]
[331590209,1720569039966,-219.0,0.0003,2]
[331590210,1720569039975,-151.0,0.00031037,4]
[331590211,1720569039984,-154.60575532,0.00031251,4]
[331590212,1720569039993,-150.0,0.00031774,2]
[331590213,1720569040003,-1405.0,0.00031774,2]
[331590214,1720569040012,-151.0,0.00032317,4]
[331590215,1720569040021,-150.0,0.00032877,2]
[331590216,1720569040031,-219.0,0.00033,2]
[331590217,1720569040040,-219.0,0.00033,2]
[331590218,1720569040050,-513.746431,0.00033295,2]
[331590219,1720569040059,-151.0,0.00033598,5]
[331590220,1720569040069,-600.0,0.000336,2]
[331590221,1720569040078,-620.00000053,0.00033601,2]
[331590222,1720569040087,-600.0,0.0003395,2]
[331590223,1720569040096,-14618.10370698,0.00034236,2]
[331590224,1720569040106,-952.44947376,0.000343,2]
[331590225,1720569040115,-431.520634,0.00034534,2]
[331590226,1720569040125,-240.05101832,0.00034567,4]
[331590227,1720569040135,-1182.49762447,0.00034588,4]
[331590228,1720569040144,-919.36652072,0.00034592,4]
[331590229,1720569040154,-695.48082098,0.00034602,60]
[331590230,1720569040164,-366.61198732,0.00034606,2]
[331590231,1720569040173,-36175.65836439,0.0003467,4]
[331590234,1720569040315,-10778.43635443,0.0003467,4]
[331590235,1720569040324,-471.62828703,0.00034672,4]
[331590236,1720569040333,-1033.33915207,0.000347,4]
[331590237,1720569040342,-1282.49405735,0.00034728,12]
[331590238,1720569040351,-5292.21400908,0.00034732,2]
[331590239,1720569040361,-192.802,0.00034748,30]
[331590240,1720569040370,-394.28228504,0.00034762,4]
[331590241,1720569040380,-453.41068423,0.00034771,4]
[331590242,1720569040390,-150.0,0.00034774,2]
[331590243,1720569040399,-1405.0,0.00034774,2]
[331590244,1720569040408,-1000.0,0.000348,3]
[331590245,1720569040417,-252.18899173,0.00034811,4]
[331590246,1720569040426,-91077.76049339,0.00034827,2]
[331590247,1720569040436,-697.486303,0.00034827,7]
[331590248,1720569040446,-697.486303,0.00034827,7]
[331590249,1720569040455,-1519.50491,0.00034827,7]
[331590250,1720569040468,-1519.50491,0.00034827,7]
[331590251,1720569040477,-552.524642,0.00034827,7]
[331590252,1720569040486,-552.524642,0.00034827,7]
[331590253,1720569040496,-292.706453,0.00034827,7]
[331590254,1720569040505,-292.706453,0.00034827,7]
[331590255,1720569040517,-209.884773,0.00034827,7]
[331590256,1720569040527,-181.700573,0.00034827,7]
[331590257,1720569040536,-209.884773,0.00034827,7]
[331590258,1720569040545,-181.700573,0.00034827,7]
[331590259,1720569040554,-649.364173,0.00034827,7]
[331590260,1720569040563,-649.364173,0.00034827,7]
[331590261,1720569040572,-33421.29619379,0.00034869,5]
[331590262,1720569040581,-503.89155448,0.00034869,2]
[331590263,1720569040591,-151.0,0.00034878,6]
[331590264,1720569040601,-154.65203293,0.00034899,4]
[331590265,1720569040610,-19212.29267926,0.000349,2]
[331590266,1720569040620,-2934.1716183,0.000349,2]
[331590267,1720569040629,-151.0,0.000349,7]
[331590268,1720569040639,-151.0,0.000349,7]
[331590269,1720569040649,-151.0,0.000349,7]
[331590270,1720569040659,-151.0,0.0003499,7]
[331590271,1720569040669,-156.363674,0.0003499,7]
[331590272,1720569040678,-252.805858,0.0003499,7]
[331590273,1720569040688,-151.0,0.0003499,7]
[331590274,1720569040699,-252.805858,0.0003499,7]
[331590275,1720569040708,-157.100147,0.0003499,7]
[331590276,1720569040719,-151.0,0.0003499,7]
[331590277,1720569040730,-151.0,0.0003499,7]
[331590278,1720569040740,-460.51369,0.0003499,2]
[331590279,1720569040750,-460.51369,0.0003499,2]
[331590280,1720569040814,-381.192338,0.0003499,7]
[331590281,1720569040823,-381.192338,0.0003499,7]
[331590282,1720569040835,-265.09411912,0.00034999,2]
[331590283,1720569040844,-371.68939578,0.00034999,4]
[331590284,1720569040854,-265.09411912,0.00034999,2]
[331590285,1720569040864,-379320.92153326,0.00035,30]
[331590306,1720569485114,6000.0,0.00038336,30]
[331590307,1720569570477,3000.0,0.00038336,30]
[331590319,1720569933151,1923.4,0.00038337,120]
[331590391,1720570238419,-34947.26192643,0.00016255,2]
[331590392,1720570238430,-1118.57521271,0.00020996,2]
[331590394,1720570238440,-541.129073,0.00021096,2]
[331590396,1720570238451,-1065.65690458,0.00021917,2]
[331590398,1720570238462,-166.666666,0.000223,2]
[331590399,1720570238472,-215.760317,0.00023045,2]
[331590400,1720570238481,-162.183895,0.00023557,2]
[331590401,1720570238491,-1118.57521267,0.00024411,2]
[331590402,1720570238502,-4970.47,0.00025491,3]
[331590403,1720570238512,-35505.1889526,0.00025491,3]
[331590404,1720570238522,-52136.2205257,0.00025501,2]
[331590405,1720570238533,-30000.0,0.00025501,2]
[331590406,1720570238542,-13468.44359236,0.00025501,2]
[331590407,1720570238552,-17258.59312702,0.00025869,2]
[331590408,1720570238562,-150.0,0.000265,2]
[331590409,1720570238571,-541.129073,0.00027195,2]
[331590410,1720570238581,-500.0,0.00027397,2]
[331590411,1720570238590,-651.69958253,0.00027397,2]
[331590412,1720570238600,-164.371,0.00028774,2]
[331590413,1720570238609,-250.0,0.00028774,2]
[331590414,1720570238619,-150.0,0.00028775,2]
[331590415,1720570238629,-1405.0,0.00028775,2]
[331590416,1720570238639,-162.183895,0.00029013,2]
[331590417,1720570238648,-2589.93664113,0.00029772,5]
[331590418,1720570238658,-35505.1889526,0.00029773,3]
[331590419,1720570238668,-151.0,0.00029804,3]
[331590420,1720570238678,-35505.1889526,0.00029838,3]
[331590421,1720570238687,-9508.99821661,0.00029903,2]
[331590422,1720570238697,-170.45207762,0.0003,4]
[331590423,1720570238707,-219.0,0.0003,2]
[331590424,1720570238717,-151.0,0.00031079,4]
[331590425,1720570238726,-919.36652072,0.00031251,4]
[331590426,1720570238736,-35505.1889526,0.00031755,4]
[331590427,1720570238745,-150.0,0.00031774,2]
[331590428,1720570238755,-150.0,0.00031774,2]
[331590429,1720570238765,-150.0,0.00031775,2]
[331590430,1720570238775,-1405.0,0.00031775,2]
[331590431,1720570238786,-151.0,0.00032353,4]
[331590432,1720570238796,-219.0,0.00033,2]
[331590433,1720570238805,-219.0,0.00033,2]
[331590434,1720570238815,-541.129073,0.00033295,2]
[331590435,1720570238825,-600.0,0.000336,2]
[331590436,1720570238836,-151.0,0.00033627,5]
[331590437,1720570238846,-35505.1889526,0.00033943,4]
[331590438,1720570238856,-600.0,0.0003395,2]
[331590439,1720570238866,-9157.09157115,0.00034229,4]
[331590440,1720570238876,-952.44947376,0.000343,2]
[331590441,1720570238887,-71010.3779051,0.00034452,4]
[331590442,1720570238897,-88888.0,0.00034462,5]
[331590443,1720570238906,-394.28228504,0.00034472,4]
[331590444,1720570238916,-366.61198732,0.00034532,2]
[331590445,1720570238926,-239.20697677,0.0003455,4]
[331590446,1720570238937,-371.68939578,0.00034563,4]
[331590447,1720570238946,-360.8874203,0.00034567,4]
[331590448,1720570238958,-215.760317,0.00034567,2]
[331590449,1720570238967,-235.62575763,0.0003458,4]
[331590450,1720570238977,-1086.61186892,0.00034672,2]
[331590451,1720570238987,-503.79102748,0.00034674,2]
[331590452,1720570238997,-5292.21400908,0.00034677,2]
[331590453,1720570239008,-192.802,0.00034697,30]
[331590454,1720570239018,-922.8597104,0.00034702,4]
[331590455,1720570239028,-31258.99660177,0.00034755,4]
[331590456,1720570240521,-166.666666,0.00022908,2]
[331590457,1720570240531,-166.666666,0.00023516,2]
[331590458,1720570240541,-166.666666,0.00024124,2]
[331590459,1720570240551,-166.666666,0.00024732,2]
[331590460,1720570240560,-166.666666,0.0002534,2]
[331590461,1720570240569,-500.0,0.00031754,2]
[331590462,1720570240578,-269.62147696,0.00031754,2]
[331590463,1720570240587,-284.38217662,0.00031754,2]
[331590464,1720570240597,-500.0,0.00031754,2]
[331590465,1720570240606,-500.0,0.00031754,2]
[331590466,1720570240615,-499.32620053,0.00031754,2]
[331590467,1720570240625,-500.0,0.00031754,2]
[331590468,1720570240634,-500.0,0.00031754,2]
[331590469,1720570240643,-312.25546461,0.00031754,2]
[331590470,1720570240653,-4246.19235083,0.00034755,4]
[331590471,1720570240662,-256.79365305,0.00034771,2]
[331590472,1720570240672,-150.0,0.00034774,2]
[331590473,1720570240681,-150.0,0.00034775,2]
[331590474,1720570240690,-1405.0,0.00034775,2]
[331590475,1720570240699,-8035.27148,0.000348,2]
[331590476,1720570240713,-243.16651748,0.00034811,4]
[331590477,1720570240725,-885.64307745,0.00034811,4]
[331590478,1720570240736,-91077.76049339,0.00034858,2]
[331590479,1720570240745,-154.60575532,0.00034899,4]
[331590480,1720570240754,-151.0,0.00034902,6]
[331590481,1720570240763,-151.0,0.0003499,7]
[331590482,1720570240773,-1000.0,0.0003499,3]
[331590483,1720570240783,-1423.24152722,0.00034999,5]
[331590484,1720570240792,-448120.89730393,0.00035,30]
[331592665,1720570724055,200.0,0.00038308,30]
[331592666,1720570730999,200.0,0.00038308,30]
[331592667,1720570731914,200.0,0.00038308,30]
[331592668,1720570733074,200.0,0.00038308,30]
[331592669,1720570734185,200.0,0.00038308,30]
[331592670,1720570808868,500.0,0.00038308,30]
[331592671,1720570809921,500.0,0.00038308,30]
[331592672,1720570810611,500.0,0.00038308,30]
[331592673,1720570811048,500.0,0.00038308,30]
[331592674,1720570811448,500.0,0.00038308,30]
[331592675,1720570811876,500.0,0.00038308,30]
[331592676,1720570812343,500.0,0.00038308,30]
[331592677,1720570812767,500.0,0.00038308,30]
[331592678,1720570813343,500.0,0.00038308,30]
[331592679,1720570824496,405.47,0.00038308,30]
[331592682,1720570847924,500.0,0.00038308,30]
[331592683,1720570848221,500.0,0.00038308,30]
[331592684,1720570848472,500.0,0.00038308,30]
[331592685,1720570848826,500.0,0.00038308,30]
[331592686,1720570849028,500.0,0.00038308,30]
[331592687,1720570849278,500.0,0.00038308,30]
[331592688,1720570849311,500.0,0.00038308,30]
[331592689,1720570849530,500.0,0.00038308,30]
[331592690,1720570849573,500.0,0.00038308,30]
[331592691,1720570849789,500.0,0.00038308,30]
[331592692,1720570849817,500.0,0.00038308,30]
[331592693,1720570850037,500.0,0.00038308,30]
[331592694,1720570850251,500.0,0.00038308,30]
[331592695,1720570850336,500.0,0.00038308,30]
[331592696,1720570850564,303.83061518,0.00038308,30]
[331592697,1720570850632,500.0,0.00038308,30]
[331592698,1720570850911,524.34173379,0.00038308,30]
[331592699,1720570851108,500.0,0.00038308,30]
[331592700,1720570851407,500.0,0.00038308,30]
[331592701,1720570853449,500.0,0.00038308,30]
[331592702,1720570853928,527.36195082,0.00038308,30]
[331592703,1720570853956,500.0,0.00038308,30]
[331592704,1720570854654,500.0,0.00038308,30]
[331592705,1720570854937,500.0,0.00038308,30]
[331592706,1720570854966,2527.82,0.00038308,30]
[331592707,1720570855192,266.95247192,0.00038308,30]
[331592708,1720570855243,2527.82,0.00038308,30]
[331592709,1720570855508,2527.82,0.00038308,30]
[331592710,1720570855859,2527.82,0.00038308,30]
[331592711,1720570855955,500.0,0.00038308,30]
[331592712,1720570856079,2527.82,0.00038308,30]
[331592713,1720570856258,500.0,0.00038308,30]
[331592714,1720570856368,2527.82,0.00038308,30]
[331592715,1720570856473,3130.76,0.00038308,30]
[331592716,1720570856562,500.0,0.00038308,30]
[331592717,1720570856704,2527.82,0.00038308,30]
[331592718,1720570856758,3130.76,0.00038308,30]
[331592719,1720570856830,500.0,0.00038308,30]
[331592720,1720570856937,2527.82,0.00038308,30]
[331592721,1720570857022,3130.76,0.00038308,30]
[331592722,1720570857092,500.0,0.00038308,30]
[331592723,1720570857190,2527.82,0.00038308,30]
[331592724,1720570857304,3130.76,0.00038308,30]
[331592725,1720570857366,500.0,0.00038308,30]
[331592726,1720570857432,397.78,0.00038308,30]
[331592727,1720570857537,500.0,0.00038308,30]
[331592728,1720570857593,3130.76,0.00038308,30]
[331592729,1720570857624,343.26,0.00038308,30]
[331592730,1720570857807,2527.82,0.00038308,30]
[331592731,1720570857856,3130.76,0.00038308,30]
[331592732,1720570858118,3130.76,0.00038308,30]
[331592733,1720570858213,520.56,0.00038308,30]
[331592734,1720570858241,2527.82,0.00038308,30]
[331592735,1720570858418,3130.76,0.00038308,30]
[331592736,1720570858495,2527.82,0.00038308,30]
[331592737,1720570858524,520.56,0.00038308,30]
[331592738,1720570858710,3130.76,0.00038308,30]
[331592739,1720570858757,2527.82,0.00038308,30]
[331592740,1720570858785,520.56,0.00038308,30]